{"text_format":"1","workbook":"xlsx","n_sheets":4,"sheets":["Warrior List","Settings","For Export","Copy to Notepad"],"not_rendered":{"charts":0,"images":0,"macros":1,"external_links":0,"defined_names":0,"comments":0,"pivot_tables":0},"unopened":[],"bounds":{"document_bytes":16777216,"sheet_cells":100000,"rows_first":2000,"rows_last":500,"rows_between":2000,"halvings":0,"cell_chars":16384,"cell_head_chars":4096},"cells_cut":0,"cells_raw":0,"read":"whole","date_system":"1900"}

{"sheet":"Warrior List","index":0,"n_rows":51,"n_cols":15,"rows_kept":51,"cut":false,"hidden":false,"merged":[[0,0,0,12]]}
["DO NOT DELETE ROW 1!!! CREATE YOUR CHARACTERS BELOW, ADD NEW ROWS AT THE BOTTOM FOR NEW X-FACTORS IF YOU WANT. THEN PRESS CTRL + W TO CREATE NOTEPAD FILE READY FOR USE WITH DWCS.EXE. ENJOY!!"]
["Identifier","Vlad","Dracula","Alucard","Alexander","Attila","Genghis","Hannibal","Hernan","Shaka","Suntzu","William","Aztec","Spartan","Zieg"]
["Name","Vlad the Impaler","Dracula","Alucard","Alexander the Great","Attila the Hun","Genghis Khan","Hannibal","Hernant Cortes","Shaka Zulu","Sun Tzu","William Wallace","Aztec Jaguar","Spartan Hoplite","Zieg Feld"]
["Coverage",41,5,60,86,63,53,58,78,0,56,51,35,68,80]
["Arm-Crush",25,75,20,40,10,10,25,40,0,10,10,25,40,20]
["Arm-Slash",25,75,30,25,25,25,10,40,0,25,25,15,25,10]
["Arm-Pierce",10,50,40,25,10,10,10,10,0,10,10,5,25,5]
["Arm-Fire",0,0,0,0,0,0,0,0,0,0,0,0,0,80]
["Shld-Cover",0,0,0,0,0,0,0,0,0,0,0,0,0,30]
["Shd-Crush",0,0,0,0,0,0,0,0,0,0,0,0,0,80]
["Shd-Slash",0,0,0,0,0,0,0,0,0,0,0,0,0,90]
["Shd-Pierce",0,0,0,0,0,0,0,0,0,0,0,0,0,70]
["Shd-Fire",0,0,0,0,0,0,0,0,0,0,0,0,0,80]
["Speed",68,90,77,44,64,60,85,38,88,61,65,72,56,72]
["LWeapon","Steel Crossbow","Bat","Steel Crossbow","Gastraphetes","Magyar Comp. Longbow","Mongol Bow","Soliferrum","Arquebus","Umkhonto","Bow & Inc. Arrows","Ettrick Longbow","Atlatl & Tlacochtli","Javelin","Flame Dart"]
["LAccuracy",23,5,23,27,24,23,23,16,23,19,23,21,20,10]
["LKillRate",37,15,37,49,37,35,45,84,47,39,42,40,43,50]
["LReach",145,200,145,190,200,195,95,215,125,190,175,225,110,120]
["LSpeed",0.78,0.5,0.78,0.72,1.1599999999999999,1.42,1.04,0.4,1.1599999999999999,1.1200000000000001,0.96,0.84,0.94,1.4]
["Ltype1",3,3,3,3,1,3,3,1,3,3,3,3,3,3]
["Ltype2",0,0,0,0,0,0,0,0,0,0,0,0,0,4]
["Ltype3",0,0,0,0,0,0,0,0,0,0,0,0,0,0]
["MWeapon","Ranseur",null,"Cross","Xyston","Hunnic Light Spear","Mongol Spear","Dory","Alabarda","Ikiwa","Ji","Claymore","Maquahuitl","Dory","Fireball"]
["MAccuracy",44,null,38,45,43,35,41,43,43,43,45,43,41,33]
["MKillRate",80,null,50,66,69,73,66,76,67,80,90,87,66,80]
["MReach",38,null,32,36,39,32,38,36,34,35,23,21,38,55]
["MSpeed",0.52,null,0.4,0.68,0.72,0.7,0.78,0.48,0.76,0.6,0.23,0.55000000000000004,0.78,0.65]
["MType1",3,null,1,3,3,3,3,2,3,2,2,3,3,4]
["MType2",0,0,0,0,0,0,0,0,0,0,0,0,0,0]
["MType3",0,0,0,0,0,0,0,0,0,0,0,0,0,0]
["SWeapon","Kilij","Fangs","Holy Sword","Makhara","Scythian Axe","Mongol Mace","Falcata","Espada Ropera","Imbeba","Dao","Warhammer","Tecpatl","Xiphos","Dragon Buster"]
["SAccuracy",90,90,87,88,91,90,90,90,85,80,90,75,80,90]
["SKillRate",81,90,93,74,80,76,69,66,76,78,72,68,83,85]
["SReach",3.1,3,3.3,2.9,2.8,2.7,3,3.4,3.1,2.1,2.7,0.9,1.7,4]
["SSpeed",1.48,2,1.7,1.52,1.6,1.54,1.58,1.68,1.94,1.62,1.24,2.2599999999999998,1.65,1.75]
["SType1",2,2,2,2,2,1,2,3,2,2,1,3,3,4]
["SType2",0,0,0,0,0,0,0,0,0,0,0,0,0,0]
["SType3",0,0,0,0,0,0,0,0,0,0,0,0,0,0]
["X-FACTORS:"]
["Night Time",40,100,60]
["Day Time",65,25,60]
["Flat Terrain",60,60,60]
["Rough Terrain",35,65,45]
["Holy Water",50,0,50]
["Audacity",85,null,null,85,85,null,85,null,85,null,85]
["Armor Metallurgy",null,null,null,null,null,85,74]
["Intimidation",85,null,null,null,null,89,86,82]
["Physicality",null,null,null,null,null,76,81,69]
["Tactics",null,null,null,null,null,89,null,null,null,95]
["Dominance",85,null,null,null,null,null,null,85,null,85]
["Generalship",null,null,null,null,null,null,null,76,null,90]

{"sheet":"Settings","index":1,"n_rows":6,"n_cols":4,"rows_kept":6,"cut":false,"hidden":false,"merged":[]}
["Number of Attributes",4,null,"[settings]"]
["Attributes","Crush",null,{"$f":"\"num_attr=\"&B1","v":"num_attr=4"}]
["…","Slash",null,{"$f":"\"attr\"&ROW()-2&\"=\"&B2","v":"attr1=Crush"}]
[null,"Pierce",null,{"$f":"\"attr\"&ROW()-2&\"=\"&B3","v":"attr2=Slash"}]
[null,"Fire",null,"attr3=Pierce"]
[null,null,null,"attr4=Fire"]

{"sheet":"For Export","index":2,"n_rows":702,"n_cols":8,"rows_kept":702,"cut":false,"hidden":true,"merged":[]}
["column:",16,"last column:",{"$f":"COUNTA('Warrior List'!2:2)","v":15},"# rows:",{"$f":"COUNTA('Warrior List'!A:A)","v":51},"copy a down to row: ",{"$f":"F1+1","v":52}]
["FORMULA LOOKUP:",null,"DUMP:"]
[{"$f":"\"[\"&INDIRECT(ADDRESS(ROW()-1,'For Export'!$B$1,1,1,\"Warrior List\"),TRUE)&\"]\"","v":"[]"},null,"[Vlad]"]
[{"$f":"'Warrior List'!A3&\"=\"&INDIRECT(ADDRESS(ROW()-1,'For Export'!$B$1,1,1,\"Warrior List\"),TRUE)","v":"Name="},null,"Name=Vlad the Impaler"]
[{"$f":"'Warrior List'!A4&\"=\"&INDIRECT(ADDRESS(ROW()-1,'For Export'!$B$1,1,1,\"Warrior List\"),TRUE)","v":"Coverage="},null,"Coverage=41"]
[{"$f":"'Warrior List'!A5&\"=\"&INDIRECT(ADDRESS(ROW()-1,'For Export'!$B$1,1,1,\"Warrior List\"),TRUE)","v":"Arm-Crush="},null,"Arm-Crush=25"]
[{"$f":"'Warrior List'!A6&\"=\"&INDIRECT(ADDRESS(ROW()-1,'For Export'!$B$1,1,1,\"Warrior List\"),TRUE)","v":"Arm-Slash="},null,"Arm-Slash=25"]
[{"$f":"'Warrior List'!A7&\"=\"&INDIRECT(ADDRESS(ROW()-1,'For Export'!$B$1,1,1,\"Warrior List\"),TRUE)","v":"Arm-Pierce="},null,"Arm-Pierce=10"]
[{"$f":"'Warrior List'!A8&\"=\"&INDIRECT(ADDRESS(ROW()-1,'For Export'!$B$1,1,1,\"Warrior List\"),TRUE)","v":"Arm-Fire="},null,"Arm-Fire=0"]
[{"$f":"'Warrior List'!A9&\"=\"&INDIRECT(ADDRESS(ROW()-1,'For Export'!$B$1,1,1,\"Warrior List\"),TRUE)","v":"Shld-Cover="},null,"Shld-Cover=0"]
[{"$f":"'Warrior List'!A10&\"=\"&INDIRECT(ADDRESS(ROW()-1,'For Export'!$B$1,1,1,\"Warrior List\"),TRUE)","v":"Shd-Crush="},null,"Shd-Crush=0"]
[{"$f":"'Warrior List'!A11&\"=\"&INDIRECT(ADDRESS(ROW()-1,'For Export'!$B$1,1,1,\"Warrior List\"),TRUE)","v":"Shd-Slash="},null,"Shd-Slash=0"]
[{"$f":"'Warrior List'!A12&\"=\"&INDIRECT(ADDRESS(ROW()-1,'For Export'!$B$1,1,1,\"Warrior List\"),TRUE)","v":"Shd-Pierce="},null,"Shd-Pierce=0"]
[{"$f":"'Warrior List'!A13&\"=\"&INDIRECT(ADDRESS(ROW()-1,'For Export'!$B$1,1,1,\"Warrior List\"),TRUE)","v":"Shd-Fire="},null,"Shd-Fire=0"]
[{"$f":"'Warrior List'!A14&\"=\"&INDIRECT(ADDRESS(ROW()-1,'For Export'!$B$1,1,1,\"Warrior List\"),TRUE)","v":"Speed="},null,"Speed=68"]
[{"$f":"'Warrior List'!A15&\"=\"&INDIRECT(ADDRESS(ROW()-1,'For Export'!$B$1,1,1,\"Warrior List\"),TRUE)","v":"LWeapon="},null,"LWeapon=Steel Crossbow"]
[{"$f":"'Warrior List'!A16&\"=\"&INDIRECT(ADDRESS(ROW()-1,'For Export'!$B$1,1,1,\"Warrior List\"),TRUE)","v":"LAccuracy="},null,"LAccuracy=23"]
[{"$f":"'Warrior List'!A17&\"=\"&INDIRECT(ADDRESS(ROW()-1,'For Export'!$B$1,1,1,\"Warrior List\"),TRUE)","v":"LKillRate="},null,"LKillRate=37"]
[{"$f":"'Warrior List'!A18&\"=\"&INDIRECT(ADDRESS(ROW()-1,'For Export'!$B$1,1,1,\"Warrior List\"),TRUE)","v":"LReach="},null,"LReach=145"]
[{"$f":"'Warrior List'!A19&\"=\"&INDIRECT(ADDRESS(ROW()-1,'For Export'!$B$1,1,1,\"Warrior List\"),TRUE)","v":"LSpeed="},null,"LSpeed=0.78"]
[{"$f":"'Warrior List'!A20&\"=\"&INDIRECT(ADDRESS(ROW()-1,'For Export'!$B$1,1,1,\"Warrior List\"),TRUE)","v":"Ltype1="},null,"Ltype1=3"]
[{"$f":"'Warrior List'!A21&\"=\"&INDIRECT(ADDRESS(ROW()-1,'For Export'!$B$1,1,1,\"Warrior List\"),TRUE)","v":"Ltype2="},null,"Ltype2=0"]
[{"$f":"'Warrior List'!A22&\"=\"&INDIRECT(ADDRESS(ROW()-1,'For Export'!$B$1,1,1,\"Warrior List\"),TRUE)","v":"Ltype3="},null,"Ltype3=0"]
[{"$f":"'Warrior List'!A23&\"=\"&INDIRECT(ADDRESS(ROW()-1,'For Export'!$B$1,1,1,\"Warrior List\"),TRUE)","v":"MWeapon="},null,"MWeapon=Ranseur"]
[{"$f":"'Warrior List'!A24&\"=\"&INDIRECT(ADDRESS(ROW()-1,'For Export'!$B$1,1,1,\"Warrior List\"),TRUE)","v":"MAccuracy="},null,"MAccuracy=44"]
[{"$f":"'Warrior List'!A25&\"=\"&INDIRECT(ADDRESS(ROW()-1,'For Export'!$B$1,1,1,\"Warrior List\"),TRUE)","v":"MKillRate="},null,"MKillRate=80"]
[{"$f":"'Warrior List'!A26&\"=\"&INDIRECT(ADDRESS(ROW()-1,'For Export'!$B$1,1,1,\"Warrior List\"),TRUE)","v":"MReach="},null,"MReach=38"]
[{"$f":"'Warrior List'!A27&\"=\"&INDIRECT(ADDRESS(ROW()-1,'For Export'!$B$1,1,1,\"Warrior List\"),TRUE)","v":"MSpeed="},null,"MSpeed=0.52"]
[{"$f":"'Warrior List'!A28&\"=\"&INDIRECT(ADDRESS(ROW()-1,'For Export'!$B$1,1,1,\"Warrior List\"),TRUE)","v":"MType1="},null,"MType1=3"]
[{"$f":"'Warrior List'!A29&\"=\"&INDIRECT(ADDRESS(ROW()-1,'For Export'!$B$1,1,1,\"Warrior List\"),TRUE)","v":"MType2="},null,"MType2=0"]
[{"$f":"'Warrior List'!A30&\"=\"&INDIRECT(ADDRESS(ROW()-1,'For Export'!$B$1,1,1,\"Warrior List\"),TRUE)","v":"MType3="},null,"MType3=0"]
[{"$f":"'Warrior List'!A31&\"=\"&INDIRECT(ADDRESS(ROW()-1,'For Export'!$B$1,1,1,\"Warrior List\"),TRUE)","v":"SWeapon="},null,"SWeapon=Kilij"]
[{"$f":"'Warrior List'!A32&\"=\"&INDIRECT(ADDRESS(ROW()-1,'For Export'!$B$1,1,1,\"Warrior List\"),TRUE)","v":"SAccuracy="},null,"SAccuracy=90"]
[{"$f":"'Warrior List'!A33&\"=\"&INDIRECT(ADDRESS(ROW()-1,'For Export'!$B$1,1,1,\"Warrior List\"),TRUE)","v":"SKillRate="},null,"SKillRate=81"]
[{"$f":"'Warrior List'!A34&\"=\"&INDIRECT(ADDRESS(ROW()-1,'For Export'!$B$1,1,1,\"Warrior List\"),TRUE)","v":"SReach="},null,"SReach=3.1"]
[{"$f":"'Warrior List'!A35&\"=\"&INDIRECT(ADDRESS(ROW()-1,'For Export'!$B$1,1,1,\"Warrior List\"),TRUE)","v":"SSpeed="},null,"SSpeed=1.48"]
[{"$f":"'Warrior List'!A36&\"=\"&INDIRECT(ADDRESS(ROW()-1,'For Export'!$B$1,1,1,\"Warrior List\"),TRUE)","v":"SType1="},null,"SType1=2"]
[{"$f":"'Warrior List'!A37&\"=\"&INDIRECT(ADDRESS(ROW()-1,'For Export'!$B$1,1,1,\"Warrior List\"),TRUE)","v":"SType2="},null,"SType2=0"]
[{"$f":"'Warrior List'!A38&\"=\"&INDIRECT(ADDRESS(ROW()-1,'For Export'!$B$1,1,1,\"Warrior List\"),TRUE)","v":"SType3="},null,"SType3=0"]
[{"$f":"'Warrior List'!A39&\"=\"&INDIRECT(ADDRESS(ROW()-1,'For Export'!$B$1,1,1,\"Warrior List\"),TRUE)","v":"X-FACTORS:="},null,"X-FACTORS:="]
[{"$f":"'Warrior List'!A40&\"=\"&INDIRECT(ADDRESS(ROW()-1,'For Export'!$B$1,1,1,\"Warrior List\"),TRUE)","v":"Night Time="},null,"Night Time=40"]
[{"$f":"'Warrior List'!A41&\"=\"&INDIRECT(ADDRESS(ROW()-1,'For Export'!$B$1,1,1,\"Warrior List\"),TRUE)","v":"Day Time="},null,"Day Time=65"]
[{"$f":"'Warrior List'!A42&\"=\"&INDIRECT(ADDRESS(ROW()-1,'For Export'!$B$1,1,1,\"Warrior List\"),TRUE)","v":"Flat Terrain="},null,"Flat Terrain=60"]
[{"$f":"'Warrior List'!A43&\"=\"&INDIRECT(ADDRESS(ROW()-1,'For Export'!$B$1,1,1,\"Warrior List\"),TRUE)","v":"Rough Terrain="},null,"Rough Terrain=35"]
[{"$f":"'Warrior List'!A44&\"=\"&INDIRECT(ADDRESS(ROW()-1,'For Export'!$B$1,1,1,\"Warrior List\"),TRUE)","v":"Holy Water="},null,"Holy Water=50"]
[{"$f":"'Warrior List'!A45&\"=\"&INDIRECT(ADDRESS(ROW()-1,'For Export'!$B$1,1,1,\"Warrior List\"),TRUE)","v":"Audacity="},null,"Audacity=85"]
[{"$f":"'Warrior List'!A46&\"=\"&INDIRECT(ADDRESS(ROW()-1,'For Export'!$B$1,1,1,\"Warrior List\"),TRUE)","v":"Armor Metallurgy="},null,"Armor Metallurgy="]
[{"$f":"'Warrior List'!A47&\"=\"&INDIRECT(ADDRESS(ROW()-1,'For Export'!$B$1,1,1,\"Warrior List\"),TRUE)","v":"Intimidation="},null,"Intimidation=85"]
[{"$f":"'Warrior List'!A48&\"=\"&INDIRECT(ADDRESS(ROW()-1,'For Export'!$B$1,1,1,\"Warrior List\"),TRUE)","v":"Physicality="},null,"Physicality="]
[{"$f":"'Warrior List'!A49&\"=\"&INDIRECT(ADDRESS(ROW()-1,'For Export'!$B$1,1,1,\"Warrior List\"),TRUE)","v":"Tactics="},null,"Tactics="]
[{"$f":"'Warrior List'!A50&\"=\"&INDIRECT(ADDRESS(ROW()-1,'For Export'!$B$1,1,1,\"Warrior List\"),TRUE)","v":"Dominance="},null,"Dominance=85"]
[{"$f":"'Warrior List'!A51&\"=\"&INDIRECT(ADDRESS(ROW()-1,'For Export'!$B$1,1,1,\"Warrior List\"),TRUE)","v":"Generalship="},null,"Generalship="]
[null,null,"[Dracula]"]
[null,null,"Name=Dracula"]
[null,null,"Coverage=5"]
[null,null,"Arm-Crush=75"]
[null,null,"Arm-Slash=75"]
[null,null,"Arm-Pierce=50"]
[null,null,"Arm-Fire=0"]
[null,null,"Shld-Cover=0"]
[null,null,"Shd-Crush=0"]
[null,null,"Shd-Slash=0"]
[null,null,"Shd-Pierce=0"]
[null,null,"Shd-Fire=0"]
[null,null,"Speed=90"]
[null,null,"LWeapon=Bat"]
[null,null,"LAccuracy=5"]
[null,null,"LKillRate=15"]
[null,null,"LReach=200"]
[null,null,"LSpeed=0.5"]
[null,null,"Ltype1=3"]
[null,null,"Ltype2=0"]
[null,null,"Ltype3=0"]
[null,null,"MWeapon="]
[null,null,"MAccuracy="]
[null,null,"MKillRate="]
[null,null,"MReach="]
[null,null,"MSpeed="]
[null,null,"MType1="]
[null,null,"MType2=0"]
[null,null,"MType3=0"]
[null,null,"SWeapon=Fangs"]
[null,null,"SAccuracy=90"]
[null,null,"SKillRate=90"]
[null,null,"SReach=3"]
[null,null,"SSpeed=2"]
[null,null,"SType1=2"]
[null,null,"SType2=0"]
[null,null,"SType3=0"]
[null,null,"X-FACTORS:="]
[null,null,"Night Time=100"]
[null,null,"Day Time=25"]
[null,null,"Flat Terrain=60"]
[null,null,"Rough Terrain=65"]
[null,null,"Holy Water=0"]
[null,null,"Audacity="]
[null,null,"Armor Metallurgy="]
[null,null,"Intimidation="]
[null,null,"Physicality="]
[null,null,"Tactics="]
[null,null,"Dominance="]
[null,null,"Generalship="]
[null,null,"[Alucard]"]
[null,null,"Name=Alucard"]
[null,null,"Coverage=60"]
[null,null,"Arm-Crush=20"]
[null,null,"Arm-Slash=30"]
[null,null,"Arm-Pierce=40"]
[null,null,"Arm-Fire=0"]
[null,null,"Shld-Cover=0"]
[null,null,"Shd-Crush=0"]
[null,null,"Shd-Slash=0"]
[null,null,"Shd-Pierce=0"]
[null,null,"Shd-Fire=0"]
[null,null,"Speed=77"]
[null,null,"LWeapon=Steel Crossbow"]
[null,null,"LAccuracy=23"]
[null,null,"LKillRate=37"]
[null,null,"LReach=145"]
[null,null,"LSpeed=0.78"]
[null,null,"Ltype1=3"]
[null,null,"Ltype2=0"]
[null,null,"Ltype3=0"]
[null,null,"MWeapon=Cross"]
[null,null,"MAccuracy=38"]
[null,null,"MKillRate=50"]
[null,null,"MReach=32"]
[null,null,"MSpeed=0.4"]
[null,null,"MType1=1"]
[null,null,"MType2=0"]
[null,null,"MType3=0"]
[null,null,"SWeapon=Holy Sword"]
[null,null,"SAccuracy=87"]
[null,null,"SKillRate=93"]
[null,null,"SReach=3.3"]
[null,null,"SSpeed=1.7"]
[null,null,"SType1=2"]
[null,null,"SType2=0"]
[null,null,"SType3=0"]
[null,null,"X-FACTORS:="]
[null,null,"Night Time=60"]
[null,null,"Day Time=60"]
[null,null,"Flat Terrain=60"]
[null,null,"Rough Terrain=45"]
[null,null,"Holy Water=50"]
[null,null,"Audacity="]
[null,null,"Armor Metallurgy="]
[null,null,"Intimidation="]
[null,null,"Physicality="]
[null,null,"Tactics="]
[null,null,"Dominance="]
[null,null,"Generalship="]
[null,null,"[Alexander]"]
[null,null,"Name=Alexander the Great"]
[null,null,"Coverage=86"]
[null,null,"Arm-Crush=40"]
[null,null,"Arm-Slash=25"]
[null,null,"Arm-Pierce=25"]
[null,null,"Arm-Fire=0"]
[null,null,"Shld-Cover=0"]
[null,null,"Shd-Crush=0"]
[null,null,"Shd-Slash=0"]
[null,null,"Shd-Pierce=0"]
[null,null,"Shd-Fire=0"]
[null,null,"Speed=44"]
[null,null,"LWeapon=Gastraphetes"]
[null,null,"LAccuracy=27"]
[null,null,"LKillRate=49"]
[null,null,"LReach=190"]
[null,null,"LSpeed=0.72"]
[null,null,"Ltype1=3"]
[null,null,"Ltype2=0"]
[null,null,"Ltype3=0"]
[null,null,"MWeapon=Xyston"]
[null,null,"MAccuracy=45"]
[null,null,"MKillRate=66"]
[null,null,"MReach=36"]
[null,null,"MSpeed=0.68"]
[null,null,"MType1=3"]
[null,null,"MType2=0"]
[null,null,"MType3=0"]
[null,null,"SWeapon=Makhara"]
[null,null,"SAccuracy=88"]
[null,null,"SKillRate=74"]
[null,null,"SReach=2.9"]
[null,null,"SSpeed=1.52"]
[null,null,"SType1=2"]
[null,null,"SType2=0"]
[null,null,"SType3=0"]
[null,null,"X-FACTORS:="]
[null,null,"Night Time="]
[null,null,"Day Time="]
[null,null,"Flat Terrain="]
[null,null,"Rough Terrain="]
[null,null,"Holy Water="]
[null,null,"Audacity=85"]
[null,null,"Armor Metallurgy="]
[null,null,"Intimidation="]
[null,null,"Physicality="]
[null,null,"Tactics="]
[null,null,"Dominance="]
[null,null,"Generalship="]
[null,null,"[Attila]"]
[null,null,"Name=Attila the Hun"]
[null,null,"Coverage=63"]
[null,null,"Arm-Crush=10"]
[null,null,"Arm-Slash=25"]
[null,null,"Arm-Pierce=10"]
[null,null,"Arm-Fire=0"]
[null,null,"Shld-Cover=0"]
[null,null,"Shd-Crush=0"]
[null,null,"Shd-Slash=0"]
[null,null,"Shd-Pierce=0"]
[null,null,"Shd-Fire=0"]
[null,null,"Speed=64"]
[null,null,"LWeapon=Magyar Comp. Longbow"]
[null,null,"LAccuracy=24"]
[null,null,"LKillRate=37"]
[null,null,"LReach=200"]
[null,null,"LSpeed=1.16"]
[null,null,"Ltype1=1"]
[null,null,"Ltype2=0"]
[null,null,"Ltype3=0"]
[null,null,"MWeapon=Hunnic Light Spear"]
[null,null,"MAccuracy=43"]
[null,null,"MKillRate=69"]
[null,null,"MReach=39"]
[null,null,"MSpeed=0.72"]
[null,null,"MType1=3"]
[null,null,"MType2=0"]
[null,null,"MType3=0"]
[null,null,"SWeapon=Scythian Axe"]
[null,null,"SAccuracy=91"]
[null,null,"SKillRate=80"]
[null,null,"SReach=2.8"]
[null,null,"SSpeed=1.6"]
[null,null,"SType1=2"]
[null,null,"SType2=0"]
[null,null,"SType3=0"]
[null,null,"X-FACTORS:="]
[null,null,"Night Time="]
[null,null,"Day Time="]
[null,null,"Flat Terrain="]
[null,null,"Rough Terrain="]
[null,null,"Holy Water="]
[null,null,"Audacity=85"]
[null,null,"Armor Metallurgy="]
[null,null,"Intimidation="]
[null,null,"Physicality="]
[null,null,"Tactics="]
[null,null,"Dominance="]
[null,null,"Generalship="]
[null,null,"[Genghis]"]
[null,null,"Name=Genghis Khan"]
[null,null,"Coverage=53"]
[null,null,"Arm-Crush=10"]
[null,null,"Arm-Slash=25"]
[null,null,"Arm-Pierce=10"]
[null,null,"Arm-Fire=0"]
[null,null,"Shld-Cover=0"]
[null,null,"Shd-Crush=0"]
[null,null,"Shd-Slash=0"]
[null,null,"Shd-Pierce=0"]
[null,null,"Shd-Fire=0"]
[null,null,"Speed=60"]
[null,null,"LWeapon=Mongol Bow"]
[null,null,"LAccuracy=23"]
[null,null,"LKillRate=35"]
[null,null,"LReach=195"]
[null,null,"LSpeed=1.42"]
[null,null,"Ltype1=3"]
[null,null,"Ltype2=0"]
[null,null,"Ltype3=0"]
[null,null,"MWeapon=Mongol Spear"]
[null,null,"MAccuracy=35"]
[null,null,"MKillRate=73"]
[null,null,"MReach=32"]
[null,null,"MSpeed=0.7"]
[null,null,"MType1=3"]
[null,null,"MType2=0"]
[null,null,"MType3=0"]
[null,null,"SWeapon=Mongol Mace"]
[null,null,"SAccuracy=90"]
[null,null,"SKillRate=76"]
[null,null,"SReach=2.7"]
[null,null,"SSpeed=1.54"]
[null,null,"SType1=1"]
[null,null,"SType2=0"]
[null,null,"SType3=0"]
[null,null,"X-FACTORS:="]
[null,null,"Night Time="]
[null,null,"Day Time="]
[null,null,"Flat Terrain="]
[null,null,"Rough Terrain="]
[null,null,"Holy Water="]
[null,null,"Audacity="]
[null,null,"Armor Metallurgy=85"]
[null,null,"Intimidation=89"]
[null,null,"Physicality=76"]
[null,null,"Tactics=89"]
[null,null,"Dominance="]
[null,null,"Generalship="]
[null,null,"[Hannibal]"]
[null,null,"Name=Hannibal"]
[null,null,"Coverage=58"]
[null,null,"Arm-Crush=25"]
[null,null,"Arm-Slash=10"]
[null,null,"Arm-Pierce=10"]
[null,null,"Arm-Fire=0"]
[null,null,"Shld-Cover=0"]
[null,null,"Shd-Crush=0"]
[null,null,"Shd-Slash=0"]
[null,null,"Shd-Pierce=0"]
[null,null,"Shd-Fire=0"]
[null,null,"Speed=85"]
[null,null,"LWeapon=Soliferrum"]
[null,null,"LAccuracy=23"]
[null,null,"LKillRate=45"]
[null,null,"LReach=95"]
[null,null,"LSpeed=1.04"]
[null,null,"Ltype1=3"]
[null,null,"Ltype2=0"]
[null,null,"Ltype3=0"]
[null,null,"MWeapon=Dory"]
[null,null,"MAccuracy=41"]
[null,null,"MKillRate=66"]
[null,null,"MReach=38"]
[null,null,"MSpeed=0.78"]
[null,null,"MType1=3"]
[null,null,"MType2=0"]
[null,null,"MType3=0"]
[null,null,"SWeapon=Falcata"]
[null,null,"SAccuracy=90"]
[null,null,"SKillRate=69"]
[null,null,"SReach=3"]
[null,null,"SSpeed=1.58"]
[null,null,"SType1=2"]
[null,null,"SType2=0"]
[null,null,"SType3=0"]
[null,null,"X-FACTORS:="]
[null,null,"Night Time="]
[null,null,"Day Time="]
[null,null,"Flat Terrain="]
[null,null,"Rough Terrain="]
[null,null,"Holy Water="]
[null,null,"Audacity=85"]
[null,null,"Armor Metallurgy=74"]
[null,null,"Intimidation=86"]
[null,null,"Physicality=81"]
[null,null,"Tactics="]
[null,null,"Dominance="]
[null,null,"Generalship="]
[null,null,"[Hernan]"]
[null,null,"Name=Hernant Cortes"]
[null,null,"Coverage=78"]
[null,null,"Arm-Crush=40"]
[null,null,"Arm-Slash=40"]
[null,null,"Arm-Pierce=10"]
[null,null,"Arm-Fire=0"]
[null,null,"Shld-Cover=0"]
[null,null,"Shd-Crush=0"]
[null,null,"Shd-Slash=0"]
[null,null,"Shd-Pierce=0"]
[null,null,"Shd-Fire=0"]
[null,null,"Speed=38"]
[null,null,"LWeapon=Arquebus"]
[null,null,"LAccuracy=16"]
[null,null,"LKillRate=84"]
[null,null,"LReach=215"]
[null,null,"LSpeed=0.4"]
[null,null,"Ltype1=1"]
[null,null,"Ltype2=0"]
[null,null,"Ltype3=0"]
[null,null,"MWeapon=Alabarda"]
[null,null,"MAccuracy=43"]
[null,null,"MKillRate=76"]
[null,null,"MReach=36"]
[null,null,"MSpeed=0.48"]
[null,null,"MType1=2"]
[null,null,"MType2=0"]
[null,null,"MType3=0"]
[null,null,"SWeapon=Espada Ropera"]
[null,null,"SAccuracy=90"]
[null,null,"SKillRate=66"]
[null,null,"SReach=3.4"]
[null,null,"SSpeed=1.68"]
[null,null,"SType1=3"]
[null,null,"SType2=0"]
[null,null,"SType3=0"]
[null,null,"X-FACTORS:="]
[null,null,"Night Time="]
[null,null,"Day Time="]
[null,null,"Flat Terrain="]
[null,null,"Rough Terrain="]
[null,null,"Holy Water="]
[null,null,"Audacity="]
[null,null,"Armor Metallurgy="]
[null,null,"Intimidation=82"]
[null,null,"Physicality=69"]
[null,null,"Tactics="]
[null,null,"Dominance=85"]
[null,null,"Generalship=76"]
[null,null,"[Shaka]"]
[null,null,"Name=Shaka Zulu"]
[null,null,"Coverage=0"]
[null,null,"Arm-Crush=0"]
[null,null,"Arm-Slash=0"]
[null,null,"Arm-Pierce=0"]
[null,null,"Arm-Fire=0"]
[null,null,"Shld-Cover=0"]
[null,null,"Shd-Crush=0"]
[null,null,"Shd-Slash=0"]
[null,null,"Shd-Pierce=0"]
[null,null,"Shd-Fire=0"]
[null,null,"Speed=88"]
[null,null,"LWeapon=Umkhonto"]
[null,null,"LAccuracy=23"]
[null,null,"LKillRate=47"]
[null,null,"LReach=125"]
[null,null,"LSpeed=1.16"]
[null,null,"Ltype1=3"]
[null,null,"Ltype2=0"]
[null,null,"Ltype3=0"]
[null,null,"MWeapon=Ikiwa"]
[null,null,"MAccuracy=43"]
[null,null,"MKillRate=67"]
[null,null,"MReach=34"]
[null,null,"MSpeed=0.76"]
[null,null,"MType1=3"]
[null,null,"MType2=0"]
[null,null,"MType3=0"]
[null,null,"SWeapon=Imbeba"]
[null,null,"SAccuracy=85"]
[null,null,"SKillRate=76"]
[null,null,"SReach=3.1"]
[null,null,"SSpeed=1.94"]
[null,null,"SType1=2"]
[null,null,"SType2=0"]
[null,null,"SType3=0"]
[null,null,"X-FACTORS:="]
[null,null,"Night Time="]
[null,null,"Day Time="]
[null,null,"Flat Terrain="]
[null,null,"Rough Terrain="]
[null,null,"Holy Water="]
[null,null,"Audacity=85"]
[null,null,"Armor Metallurgy="]
[null,null,"Intimidation="]
[null,null,"Physicality="]
[null,null,"Tactics="]
[null,null,"Dominance="]
[null,null,"Generalship="]
[null,null,"[Suntzu]"]
[null,null,"Name=Sun Tzu"]
[null,null,"Coverage=56"]
[null,null,"Arm-Crush=10"]
[null,null,"Arm-Slash=25"]
[null,null,"Arm-Pierce=10"]
[null,null,"Arm-Fire=0"]
[null,null,"Shld-Cover=0"]
[null,null,"Shd-Crush=0"]
[null,null,"Shd-Slash=0"]
[null,null,"Shd-Pierce=0"]
[null,null,"Shd-Fire=0"]
[null,null,"Speed=61"]
[null,null,"LWeapon=Bow & Inc. Arrows"]
[null,null,"LAccuracy=19"]
[null,null,"LKillRate=39"]
[null,null,"LReach=190"]
[null,null,"LSpeed=1.12"]
[null,null,"Ltype1=3"]
[null,null,"Ltype2=0"]
[null,null,"Ltype3=0"]
[null,null,"MWeapon=Ji"]
[null,null,"MAccuracy=43"]
[null,null,"MKillRate=80"]
[null,null,"MReach=35"]
[null,null,"MSpeed=0.6"]
[null,null,"MType1=2"]
[null,null,"MType2=0"]
[null,null,"MType3=0"]
[null,null,"SWeapon=Dao"]
[null,null,"SAccuracy=80"]
[null,null,"SKillRate=78"]
[null,null,"SReach=2.1"]
[null,null,"SSpeed=1.62"]
[null,null,"SType1=2"]
[null,null,"SType2=0"]
[null,null,"SType3=0"]
[null,null,"X-FACTORS:="]
[null,null,"Night Time="]
[null,null,"Day Time="]
[null,null,"Flat Terrain="]
[null,null,"Rough Terrain="]
[null,null,"Holy Water="]
[null,null,"Audacity="]
[null,null,"Armor Metallurgy="]
[null,null,"Intimidation="]
[null,null,"Physicality="]
[null,null,"Tactics=95"]
[null,null,"Dominance=85"]
[null,null,"Generalship=90"]
[null,null,"[William]"]
[null,null,"Name=William Wallace"]
[null,null,"Coverage=51"]
[null,null,"Arm-Crush=10"]
[null,null,"Arm-Slash=25"]
[null,null,"Arm-Pierce=10"]
[null,null,"Arm-Fire=0"]
[null,null,"Shld-Cover=0"]
[null,null,"Shd-Crush=0"]
[null,null,"Shd-Slash=0"]
[null,null,"Shd-Pierce=0"]
[null,null,"Shd-Fire=0"]
[null,null,"Speed=65"]
[null,null,"LWeapon=Ettrick Longbow"]
[null,null,"LAccuracy=23"]
[null,null,"LKillRate=42"]
[null,null,"LReach=175"]
[null,null,"LSpeed=0.96"]
[null,null,"Ltype1=3"]
[null,null,"Ltype2=0"]
[null,null,"Ltype3=0"]
[null,null,"MWeapon=Claymore"]
[null,null,"MAccuracy=45"]
[null,null,"MKillRate=90"]
[null,null,"MReach=23"]
[null,null,"MSpeed=0.23"]
[null,null,"MType1=2"]
[null,null,"MType2=0"]
[null,null,"MType3=0"]
[null,null,"SWeapon=Warhammer"]
[null,null,"SAccuracy=90"]
[null,null,"SKillRate=72"]
[null,null,"SReach=2.7"]
[null,null,"SSpeed=1.24"]
[null,null,"SType1=1"]
[null,null,"SType2=0"]
[null,null,"SType3=0"]
[null,null,"X-FACTORS:="]
[null,null,"Night Time="]
[null,null,"Day Time="]
[null,null,"Flat Terrain="]
[null,null,"Rough Terrain="]
[null,null,"Holy Water="]
[null,null,"Audacity=85"]
[null,null,"Armor Metallurgy="]
[null,null,"Intimidation="]
[null,null,"Physicality="]
[null,null,"Tactics="]
[null,null,"Dominance="]
[null,null,"Generalship="]
[null,null,"[Aztec]"]
[null,null,"Name=Aztec Jaguar"]
[null,null,"Coverage=35"]
[null,null,"Arm-Crush=25"]
[null,null,"Arm-Slash=15"]
[null,null,"Arm-Pierce=5"]
[null,null,"Arm-Fire=0"]
[null,null,"Shld-Cover=0"]
[null,null,"Shd-Crush=0"]
[null,null,"Shd-Slash=0"]
[null,null,"Shd-Pierce=0"]
[null,null,"Shd-Fire=0"]
[null,null,"Speed=72"]
[null,null,"LWeapon=Atlatl & Tlacochtli"]
[null,null,"LAccuracy=21"]
[null,null,"LKillRate=40"]
[null,null,"LReach=225"]
[null,null,"LSpeed=0.84"]
[null,null,"Ltype1=3"]
[null,null,"Ltype2=0"]
[null,null,"Ltype3=0"]
[null,null,"MWeapon=Maquahuitl"]
[null,null,"MAccuracy=43"]
[null,null,"MKillRate=87"]
[null,null,"MReach=21"]
[null,null,"MSpeed=0.55"]
[null,null,"MType1=3"]
[null,null,"MType2=0"]
[null,null,"MType3=0"]
[null,null,"SWeapon=Tecpatl"]
[null,null,"SAccuracy=75"]
[null,null,"SKillRate=68"]
[null,null,"SReach=0.9"]
[null,null,"SSpeed=2.26"]
[null,null,"SType1=3"]
[null,null,"SType2=0"]
[null,null,"SType3=0"]
[null,null,"X-FACTORS:="]
[null,null,"Night Time="]
[null,null,"Day Time="]
[null,null,"Flat Terrain="]
[null,null,"Rough Terrain="]
[null,null,"Holy Water="]
[null,null,"Audacity="]
[null,null,"Armor Metallurgy="]
[null,null,"Intimidation="]
[null,null,"Physicality="]
[null,null,"Tactics="]
[null,null,"Dominance="]
[null,null,"Generalship="]
[null,null,"[Spartan]"]
[null,null,"Name=Spartan Hoplite"]
[null,null,"Coverage=68"]
[null,null,"Arm-Crush=40"]
[null,null,"Arm-Slash=25"]
[null,null,"Arm-Pierce=25"]
[null,null,"Arm-Fire=0"]
[null,null,"Shld-Cover=0"]
[null,null,"Shd-Crush=0"]
[null,null,"Shd-Slash=0"]
[null,null,"Shd-Pierce=0"]
[null,null,"Shd-Fire=0"]
[null,null,"Speed=56"]
[null,null,"LWeapon=Javelin"]
[null,null,"LAccuracy=20"]
[null,null,"LKillRate=43"]
[null,null,"LReach=110"]
[null,null,"LSpeed=0.94"]
[null,null,"Ltype1=3"]
[null,null,"Ltype2=0"]
[null,null,"Ltype3=0"]
[null,null,"MWeapon=Dory"]
[null,null,"MAccuracy=41"]
[null,null,"MKillRate=66"]
[null,null,"MReach=38"]
[null,null,"MSpeed=0.78"]
[null,null,"MType1=3"]
[null,null,"MType2=0"]
[null,null,"MType3=0"]
[null,null,"SWeapon=Xiphos"]
[null,null,"SAccuracy=80"]
[null,null,"SKillRate=83"]
[null,null,"SReach=1.7"]
[null,null,"SSpeed=1.65"]
[null,null,"SType1=3"]
[null,null,"SType2=0"]
[null,null,"SType3=0"]
[null,null,"X-FACTORS:="]
[null,null,"Night Time="]
[null,null,"Day Time="]
[null,null,"Flat Terrain="]
[null,null,"Rough Terrain="]
[null,null,"Holy Water="]
[null,null,"Audacity="]
[null,null,"Armor Metallurgy="]
[null,null,"Intimidation="]
[null,null,"Physicality="]
[null,null,"Tactics="]
[null,null,"Dominance="]
[null,null,"Generalship="]
[null,null,"[Zieg]"]
[null,null,"Name=Zieg Feld"]
[null,null,"Coverage=80"]
[null,null,"Arm-Crush=20"]
[null,null,"Arm-Slash=10"]
[null,null,"Arm-Pierce=5"]
[null,null,"Arm-Fire=80"]
[null,null,"Shld-Cover=30"]
[null,null,"Shd-Crush=80"]
[null,null,"Shd-Slash=90"]
[null,null,"Shd-Pierce=70"]
[null,null,"Shd-Fire=80"]
[null,null,"Speed=72"]
[null,null,"LWeapon=Flame Dart"]
[null,null,"LAccuracy=10"]
[null,null,"LKillRate=50"]
[null,null,"LReach=120"]
[null,null,"LSpeed=1.4"]
[null,null,"Ltype1=3"]
[null,null,"Ltype2=4"]
[null,null,"Ltype3=0"]
[null,null,"MWeapon=Fireball"]
[null,null,"MAccuracy=33"]
[null,null,"MKillRate=80"]
[null,null,"MReach=55"]
[null,null,"MSpeed=0.65"]
[null,null,"MType1=4"]
[null,null,"MType2=0"]
[null,null,"MType3=0"]
[null,null,"SWeapon=Dragon Buster"]
[null,null,"SAccuracy=90"]
[null,null,"SKillRate=85"]
[null,null,"SReach=4"]
[null,null,"SSpeed=1.75"]
[null,null,"SType1=4"]
[null,null,"SType2=0"]
[null,null,"SType3=0"]
[null,null,"X-FACTORS:="]
[null,null,"Night Time="]
[null,null,"Day Time="]
[null,null,"Flat Terrain="]
[null,null,"Rough Terrain="]
[null,null,"Holy Water="]
[null,null,"Audacity="]
[null,null,"Armor Metallurgy="]
[null,null,"Intimidation="]
[null,null,"Physicality="]
[null,null,"Tactics="]
[null,null,"Dominance="]
[null,null,"Generalship="]

{"sheet":"Copy to Notepad","index":3,"n_rows":0,"n_cols":0,"rows_kept":0,"cut":false,"hidden":false,"merged":[]}